Cogmind - Beta 13 @@@ ROGUE MODE // 2024.04.12 @ 11:39:35 Player: gabr Result: Self-destructed Performance ------------- Evolutions (2) 1000 Regions Visited (4) 800 Robots Destroyed (23) 115 Value Destroyed (637) 637 Prototype IDs (1) 20 Alien Tech Used (0) 0 Bonus (0) 0 TOTAL SCORE: 2572 Bonus ------- None Cogmind --------- Core Integrity 502/550 Matter 216/300 Energy 11/100 System Corruption 2% Temperature Cool (17) Movement Walking (105) Location -8/Materials Parts ------- > --- POWER (1) -------- (None) > --- PROPULSION (4) --- Aluminum Leg VSS Leg Improved VTOL Module > --- UTILITY (4) ------ Heat Sink Small Storage Unit Utility Shielding > --- WEAPON (2) ------- Beam Rifle Particle Cannon > --- INVENTORY (8) ---- High-capacity Matter Pod (200) Small Laser Beam Rifle Particle Gun Light Assault Rifle Improved Grenade Launcher Peak State ------------ > --- POWER ------------ Ion Engine > --- PROPULSION ------- Aluminum Leg Aluminum Leg VSS Leg Improved VTOL Module > --- UTILITY ---------- Heat Sink Small Storage Unit Utility Shielding Hardened Medium Armor Plating > --- WEAPON ----------- Particle Cannon Improved Grenade Launcher > --- INVENTORY -------- Aluminum Leg High-capacity Matter Pod Small Laser Beam Rifle Beam Rifle Particle Gun Light Assault Rifle Enhanced Flamer [Rating: 22] Favorites ----------- Power Ion Engine Engine Ion Engine Propulsion Aluminum Leg Leg Aluminum Leg Flight Unit Improved VTOL Module Utility Small Storage Unit Device Heat Sink Storage Small Storage Unit Protection Power Shielding Weapon Beam Rifle Energy Gun Beam Rifle Energy Cannon Particle Cannon Ballistic Gun Assault Rifle Launcher Grenade Launcher Special Weapon Enhanced Flamer Build | -11 -10 -9 -9 -8 ------- Run | Yrd Mat Mat Min Mat Slots Evolved 4 | . . 2 . 2 Power . | . . . . . Propulsion 2 | . . 2 . . Utility 2 | . . . . 2 Weapon . | . . . . . Parts Attached 43 | 6 11 4 1 21 Power 3 | 1 1 1 . . Engine 3 | 1 1 1 . . Core . | . . . . . Reactor . | . . . . . Propulsion 9 | 2 1 1 . 5 Treads . | . . . . . Leg 8 | 2 1 1 . 4 Wheel . | . . . . . Hover . | . . . . . Flight 1 | . . . . 1 Utility 12 | 1 4 1 . 6 Device 2 | . . . . 2 Storage 2 | 1 . . . 1 Processor . | . . . . . Hackware . | . . . . . Protection 8 | . 4 1 . 3 Artifact . | . . . . . Weapon 19 | 2 5 1 1 10 Energy Gun 13 | 1 4 1 . 7 Energy Cannon 1 | . . . . 1 Ballistic Gun 1 | 1 . . . . Ballistic Cannon . | . . . . . Launcher 2 | . 1 . . 1 Special Weapon 2 | . . . 1 1 Impact Weapon . | . . . . . Slashing Weapon . | . . . . . Piercing Weapon . | . . . . . Special Melee Weapon . | . . . . . Unidentified Prototypes 1 | . . . . 1 Parts Lost 9 | . . 2 . 7 Power 2 | . . 1 . 1 Propulsion 3 | . . . . 3 Utility 2 | . . 1 . 1 Weapon 2 | . . . . 2 Highest Loss Streak 4 | . . 2 . 4 To Critical Strikes . | . . . . . Average Slot Usage (%) 89 | . 99 80 88 88 Engine 10 | . 14 9 11 7 Leg 29 | . 28 26 33 21 Flight 1 | . . . . 5 Device 1 | . . . . 8 Storage 11 | . 14 11 11 9 Protection 12 | . 13 11 11 17 Energy Gun 13 | . 19 22 11 12 Energy Cannon 1 | . . . . 4 Ballistic Gun 1 | . 8 . . . Special Weapon 5 | . . . 10 . Naked Turns . | . . . . . Heaviest Build 27 | 13 16 17 17 27 Greatest Support 32 | 20 20 30 30 32 Greatest Overweight (x) 2 | . . . . 2 Average Overweight (x) . | . . . . . Largest Inventory Capacity 8 | 8 8 8 8 8 Average Capacity 7 | 7 8 8 8 8 Most Carried 8 | 1 8 8 8 8 Average Carried 7 | . 7 7 8 7 Final Capacity 8 | 8 8 8 8 8 Final Carried 8 | 1 8 8 8 6 Class Distribution -------------------- 74% | Scavenger-Mutant 25% | Mutant Dominant Class ---------------- Mutant | -10/Materials Scavenger-Mutant | -9/Materials Scavenger-Mutant | -9/Mines Scavenger-Mutant | -8/Materials Resources | -11 -10 -9 -9 -8 ----------- Run | Yrd Mat Mat Min Mat Matter Collected 886 | 244 252 95 131 164 Remotely . | . . . . . Salvage Created 832 | 11 439 95 33 254 Parts 48 | 2 28 5 3 10 Haulers Intercepted 1 | . 1 . . . Recyclers Shooed 2 | . 2 . . . Parts Field Recycled . | . . . . . Retrieved Matter . | . . . . . Parts Self-Destructed . | . . . . . Prevented . | . . . . . Kills | -11 -10 -9 -9 -8 ------- Run | Yrd Mat Mat Min Mat Combat Hostiles Destroyed 16 | . 7 2 3 4 Guns 10 | . 4 2 2 2 Cannons 2 | . . . 1 1 AOE 3 | . 3 . . . Classes Destroyed 9 | 1 5 1 1 1 Worker 1 | . 1 . . . Tunneler 1 | 1 . . . . Hauler 1 | . 1 . . . Recycler 3 | . 2 . . 1 Watcher 1 | . 1 . . . Swarmer 3 | . . . 3 . Grunt 8 | . 7 1 . . Sentry 4 | . . 1 . 3 Hunter 1 | . . . . 1 Best Kill Streak 5 | 1 5 1 2 2 Combat Bots Only 3 | . 3 1 2 2 Max Kills in Single Turn 3 | 1 3 1 1 1 Gunslinging . | . . . . . Exploded 1 | . 1 . . . Melee . | . . . . . Uniques/NPCs Destroyed . | . . . . . Combat | -11 -10 -9 -9 -8 -------- Run | Yrd Mat Mat Min Mat Hostile Shots Fired 136 | . 25 16 40 55 Missed 41 | . 12 5 13 11 Damage Taken 1434 | . 200 164 212 858 Core 187 | . 81 . 58 48 Absorbed by Shields . | . . . . . Redirected to Shielding 32 | . 12 . 8 12 Core Remaining (%) 84 | 100 67 . 85 . Volleys Fired 81 | 1 28 11 13 28 Largest 2 | 2 2 2 2 2 Hottest 148 | 60 115 115 136 148 Shots Fired 151 | 2 53 22 23 51 Gun 115 | 2 49 22 11 31 Cannon 13 | . . . . 13 Launcher 8 | . 4 . . 4 Special 15 | . . . 12 3 Kinetic 24 | 1 23 . . . Thermal 113 | 1 26 22 23 41 Explosive 8 | . 4 . . 4 Electromagnetic 6 | . . . . 6 Robot Hit Streak 19 | 1 9 10 5 19 Robot Miss Streak 3 | . 3 2 3 3 Penetration Max . | . . . . . Secondary Targets . | . . . . . Shots Hit Robots 92 | 1 33 15 8 35 Core Hits 39 | 1 21 4 3 10 Critical Kills 1 | . . . . 1 Critical Parts Destroyed . | . . . . . Critical Strikes 3 | . . 1 . 2 Burn 2 | . . 1 . 1 Meltdown 1 | . . . . 1 Melee Attacks . | . . . . . Impact . | . . . . . Slashing . | . . . . . Piercing . | . . . . . Sneak Attacks . | . . . . . Combat Hostiles . | . . . . . Follow-up Attacks . | . . . . . Damage Inflicted 1703 | 12 715 210 107 659 Guns 1047 | 12 426 210 60 339 Cannons 184 | . . . . 184 Explosions 406 | . 289 . . 117 Melee . | . . . . . Ramming 8 | . . . . 8 Kinetic 218 | 12 206 . . . Thermal 993 | . 220 210 107 456 Explosive 406 | . 289 . . 117 Electromagnetic 78 | . . . . 78 Impact . | . . . . . Slashing . | . . . . . Piercing . | . . . . . Highest Corruption 2 | . 2 . . 2 Average Corruption 2 | . 2 . . 2 Corruption Purged . | . . . . . Corruption Blocked . | . . . . . Effects 7 | . . . . 7 Message Errors 1 | . . . . 1 Matter Fused 4 | . . . . 4 Energy Discharges 1 | . . . . 1 Alerts 1 | . . . . 1 Overload Shots . | . . . . . Overflow Damage 7 | . . . . 7 Projectiles . | . . . . . Explosions 7 | . . . . 7 Melee . | . . . . . Knockbacks . | . . . . . Impact . | . . . . . Kinetic . | . . . . . Secondary . | . . . . . Self-Inflicted Damage 50 | . . . . 50 Shots 2 | . . . . 2 Rammed . | . . . . . Targets Rammed 2 | . . . . 2 Kicked 2 | . . . . 2 Crushed . | . . . . . Highest Temperature 437 | . 175 270 437 161 Average Temperature 95 | . 53 111 192 37 Received Heat Transfer 405 | . 111 51 . 243 Effects 3 | . . 1 2 . Shutdowns 1 | . . . 1 . Energy Bleed 1 | . . 1 . . Interference 1 | . . . 1 . Siege Activations . | . . . . . Robots Corrupted . | . . . . . Combat Hostiles . | . . . . . Parts Fried . | . . . . . Impact Corruptions . | . . . . . Robots Melted 1 | . . . . 1 Combat Hostiles 1 | . . . . 1 Parts Melted 10 | . 2 3 . 5 Heat Transferred 2748 | . 535 629 468 1116 Parts Sabotaged . | . . . . . Parts Stolen . | . . . . . Parts Stripped . | . . . . . Power Chain Reactions . | . . . . . Alert | -11 -10 -9 -9 -8 ------- Run | Yrd Mat Mat Min Mat Peak Influence 268 | 5 268 98 157 166 Initial 37 | . 3 28 37 5 Average 63 | 2 159 85 38 49 Maximum Alert Level 1 | . 1 . . . Low Security (%) 89 | 100 42 100 100 100 Level 1 10 | . 57 . . . Level 2 . | . . . . . Level 3 . | . . . . . Level 4 . | . . . . . Level 5 . | . . . . . High Security . | . . . . . Max Security . | . . . . . Squads Dispatched 2 | . 1 1 . . Investigation . | . . . . . Extermination . | . . . . . Reinforcement 2 | . 1 1 . . Assault . | . . . . . Garrison . | . . . . . Intercept . | . . . . . Searches Triggered . | . . . . . Construction Impeded . | . . . . . Haulers Reinforced . | . . . . . Active Scanning Responses . | . . . . . Cargo Convoy Interrupts . | . . . . . Stealth | -11 -10 -9 -9 -8 --------- Run | Yrd Mat Mat Min Mat Distress Signals . | . . . . . Communications Jammed . | . . . . . Distress Signals . | . . . . . Times Spotted 30 | . 12 3 9 6 Peak Tracking Total 4 | . 3 2 4 4 Tactical Retreats 5 | . . . 4 1 Traps | -11 -10 -9 -9 -8 ------- Run | Yrd Mat Mat Min Mat Traps Triggered 2 | . 1 . . 1 Indirectly . | . . . . . Trap Hack Attempts . | . . . . . Triggered . | . . . . . Disarmed . | . . . . . Reprogrammed . | . . . . . Reused . | . . . . . Traps Extracted . | . . . . . Installed . | . . . . . Triggered . | . . . . . Machines | -11 -10 -9 -9 -8 ---------- Run | Yrd Mat Mat Min Mat Machines Disabled 3 | . 2 . . 1 Max in Single Turn 1 | . 1 . . 1 Machines Repaired . | . . . . . Machines Dismantled . | . . . . . Machines Sabotaged . | . . . . . Overloaded Fab Kills . | . . . . . Hacking | -11 -10 -9 -9 -8 --------- Run | Yrd Mat Mat Min Mat Machines Accessed 3 | . . . 1 2 Terminals 3 | . . . 1 2 Fabricators . | . . . . . Repair Stations . | . . . . . Recycling Units . | . . . . . Scanalyzers . | . . . . . Garrison Access . | . . . . . Total Hacks 7 | . . . 2 5 Successful 3 | . . . . 3 Failed 4 | . . . 2 2 Catastrophic 1 | . . . 1 . Database Lockouts . | . . . . . Manual 4 | . . . 2 2 Terminals 7 | . . . 2 5 Fabricators . | . . . . . Repair Stations . | . . . . . Recycling Units . | . . . . . Scanalyzers . | . . . . . Garrison Access . | . . . . . Terminal Hacks 3 | . . . . 3 Record 1 | . . . . 1 Unreport Threat 1 | . . . . 1 Zone Layout 1 | . . . . 1 Fabricator Hacks . | . . . . . Repair Station Hacks . | . . . . . Recycling Unit Hacks . | . . . . . Scanalyzer . | . . . . . Garrison Access Hacks . | . . . . . Unauthorized Hacks . | . . . . . Terminals . | . . . . . Fabricators . | . . . . . Repair Stations . | . . . . . Recycling Units . | . . . . . Scanalyzers . | . . . . . Garrison Access . | . . . . . Data Cores Recovered . | . . . . . Used . | . . . . . Hacking Detections 3 | . . . 1 2 Full Trace Events 1 | . . . . 1 Feedback Events . | . . . . . Feedback Blocked . | . . . . . Robot Schematics Acquired . | . . . . . Robots Built . | . . . . . Authchips . | . . . . . Time . | . . . . . Total Robot Build Rating . | . . . . . Part Schematics Acquired . | . . . . . Parts Built . | . . . . . Authchips . | . . . . . Time . | . . . . . Total Part Build Rating . | . . . . . Parts Repaired . | . . . . . Time . | . . . . . Parts Recycled . | . . . . . Recycled Matter . | . . . . . Retrieved Matter . | . . . . . Retrieved Components . | . . . . . Parts Scanalyzed . | . . . . . Part Schematics Acquired . | . . . . . Parts Damaged . | . . . . . Bothacking | -11 -10 -9 -9 -8 ------------ Run | Yrd Mat Mat Min Mat Used RIF Installer . | . . . . . Robots Hacked . | . . . . . Non-combat . | . . . . . Combat . | . . . . . Robot Hacks Applied . | . . . . . Relay Couplers Released . | . . . . . Fabnet Peak Effective % . | . . . . . Robots Rewired . | . . . . . Allies Hacked . | . . . . . Hacks Repelled . | . . . . . Allies | -11 -10 -9 -9 -8 -------- Run | Yrd Mat Mat Min Mat Total Allies . | . . . . . Largest Group . | . . . . . Highest-Rated Group . | . . . . . Highest-Rated Ally . | . . . . . Total Orders . | . . . . . Ally Attacks . | . . . . . Total Damage . | . . . . . Kills . | . . . . . Allies Corrupted . | . . . . . Allies Melted . | . . . . . Intel | -11 -10 -9 -9 -8 ------- Run | Yrd Mat Mat Min Mat Robot Analysis Total . | . . . . . Derelict Logs Recovered 2 | . . . 2 . Drone Launches . | . . . . . Drone Recoveries . | . . . . . Exploration | -11 -10 -9 -9 -8 ------------- Run | Yrd Mat Mat Min Mat Turns Passed 2231 | 84 402 99 1182 464 Spaces Moved 963 | 61 223 48 397 234 Core 4 | 4 . . . . Treads . | . . . . . Legs 959 | 57 223 48 397 234 Wheels . | . . . . . Hover . | . . . . . Flight . | . . . . . Fastest Speed 50 | 50 120 120 120 105 Average Speed 122 | 115 120 120 120 130 Slowest Speed 260 | 120 120 120 120 260 Overloaded Moves . | . . . . . Propulsion Burnouts . | . . . . . Robots Hopped . | . . . . . Cave-ins Triggered . | . . . . . Exploration Rate (%) 29 | 4 34 6 89 15 Regions Visited 4 Branch Regions 1 Pre-discovered Areas . | . . . . . Known Exits Taken . | . . . . . Unknown Exits Taken 4 | 1 1 1 1 . Scrap Searched 1 | . . . 1 . Spaces Dug . | . . . . . Terrain Destroyed 32 | . 5 . . 27 Melee . | . . . . . Projectile . | . . . . . AOE 32 | . 5 . . 27 Terrain Rammed . | . . . . . Walls Destroyed . | . . . . . Machines Disabled . | . . . . . Actions | -11 -10 -9 -9 -8 --------- Run | Yrd Mat Mat Min Mat Total 1854 | 69 310 66 1070 339 Wait 726 | 1 26 3 657 39 Move 959 | 60 222 47 396 234 Hop . | . . . . . Pick Up 19 | 1 12 1 1 4 Fast Attach 18 | 6 2 1 1 8 Attach 7 | . . 2 . 5 Detach 1 | . . . . 1 Swap 18 | . 9 1 . 8 Drop 23 | . 11 . 2 10 Fire 81 | 1 28 11 13 28 Melee . | . . . . . Ram . | . . . . . Kick 2 | . . . . 2 Crush . | . . . . . Escape Stasis . | . . . . . Rewire . | . . . . . Trap . | . . . . . Miscellaneous . | . . . . . Route ------- -11/Scrapyard -10/Materials -9/Materials -9/Mines -8/Materials History --------- Turn | Location | Event 5 | -11/Scrapyard | Discovered new exit (range 15) 85 | -11/Scrapyard | Entered Materials 348 | -10/Materials | Build established: Mutant 444 | -10/Materials | Discovered new exit (range 15) 487 | -10/Materials | Entered another Materials area 487 | -9/Materials | Evolved 2 slots: Propulsion x2 493 | -9/Materials | Discovered new exit (range 16) 586 | -9/Materials | Entered Mines 632 | -9/Mines | A weapon hastily lodged in a ceiling crevice suddenly fell to the ground 827 | -9/Mines | Build established: Scavenger-Mutant 1721 | -9/Mines | Discovered new exit (range 10) 1768 | -9/Mines | Entered Materials 1768 | -8/Materials | Evolved 2 slots: Utility x2 2212 | -8/Materials | Lost 4 parts (1p2n1w) 2232 | -8/Materials | Self-destructed Last Messages --------------- 02187_ U-05 Engineer lays Concrete. 02189_ L-31 Rogue heat damages Katana. 02189_ U-05 Engineer lays Concrete. 02189_ M-13 Machinist repairs L-31 Rogue. 02190_ The unstable cave ceiling collapses. 02190_ U-05 Engineer lays Concrete. 02192_ VSS Leg severed. 02192_ R-06 Scavenger collects Assault Rifle. 02192_ U-05 Engineer lays Concrete. 02194_ M-13 Machinist repairs Katana. 02195_ The unstable cave ceiling collapses. 02207_ Kicked L-31 Rogue. 02217_ Acquired VSS Leg. 02218_ U-05 Engineer lays Concrete. 02219_ U-05 Engineer builds a Wall. 02220_ System corrupted: Matter fused (-10). 02220_ U-05 Engineer builds a Wall. 02221_ Kicked U-05 Engineer out of the way. 02223_ U-05 Engineer builds a Wall. 02232_ Hrd. Medium Armor Plating destroyed. Map ----- +----------------------------------------------------+ | ?????????????????????????????????????????????????? | | ?????????????????????????????????????????????????? | | ?????????????????????????????????????????????????? | | ?????????????????????????????????????????????????? | | ?????????????????????????????????????????????????? | | ????????????????????? ???????????????????????????? | | ??????????????????? ???????############???????? | | ?????????????????? ???????# # #???????? | | ??????????????????? = ???????# # #???????? | | ??????????????????? ???????#"" # #???????? | | ???????????????????# #??????#"T + #???????? | | ???????????????????# #??????#"" # #???????? | | ???????????????????# #??????# # #???????? | | ???????????????????# +??????######## #???????? | | ???????????????????# #?????????????# #???????? | | ???????????????????# #?????????????# #???????? | | ??????????????????## ##????????????# #???????? | | ??????????????????# ############## #???????? | | ??????????????????# #???????? | | ??????????????????# #???????? | | ??????????????????# #???????? | | ??????????????????# % ####### #####+#####????? | | ????????????????#####+ ####???# # #????? | | ????????????????# ##??# # #????? | | ????????????????# ^ u##??# # """ """ #????? | | ????????????????# ! @##### # """ """ #????? | | ????????????????# g # """ """ #????? | | ????????#########^ ##### # """ """ #????? | | ? a k # #?# # """ """ #????? | | ????????######### # #?# # #????? | | ????????????????# u # #?# #?#######??????? | | ????????????????##### # #?# #??????????????? | | ?????????????????#### ##?# #??????????????? | | ????????????????????########??# #??????????????? | | ??????????????????????????????# #??????????????? | | ??????????????????????????????# #??????????????? | | ??????????????????????????????# #??????????????? | | ??????????????????????????????# #??????????????? | | ??????????????????????????????# #??????????????? | | ??????????????????????????????# #??????????????? | | ??????????????????????????????# ##########?????? | | ??????????????????????????????# %=#?????? | | ????????????????????????????####+#########+####??? | | ????????????????????????????# #?# #??? | | ????????????????????????????# """ #?# #??? | | ????????????????????????????# """ /#?# " #??? | | ????????????????????????????# """ ### !! T #??? | | ????????????????????????????# [## !! " #??? | | ????????????????????????????# """ ### #??? | | ????????????????????????????# """ #?########??? | +----------------------------------------------------+ Best States ------------- Heat Dissipation 41 Energy Generation 10 Energy Capacity 250 Matter Stores 300 Matter Capacity 300 Sight Range 16 Terrain Scan Density 10 Armor Coverage 225 Power Shielding 33 Utility Shielding 33 Evasion (%) 55 Item Schematics ----------------- None Robot Schematics ------------------ None Fabricated ------------ Nothing Alien Tech Used ----------------- None Achievements -------------- None Challenges ------------ None Game ------ Seed RestorationSpacefoldSpecial Manual? 0 Play Time 00:15:25 Cumulative 87.5 hours Start 2024.04.11 @ 23:41:58 End 2024.04.12 @ 11:39:35 Sessions 1 Manual Loads 0 Difficulty Rogue Special Mode None Game No. 182 Rogue 182 Adventurer 0 Explorer 0 Win Type - Total 0 Types 0/0/0/0/0/0/0/0/0 Lore% 29 Gallery% 45 Achievement% 32 Wizard Run 0 Options --------- Layout 0 ASCII 0 Keyboard 1 Movement Numpad Keybinds 0 Fullscreen 1 Font 24/Terminus Map View 76x50 Zoom Use 0% Tactical HUD 1 Map Filters NONE Filters NONE Steam 1 RUN: 1d15d883-6af3-4f7b-aff7-efd72e0322ac